Cogmind - Beta 13 @@@ ROGUE MODE // 2024.04.13 @ 13:57:47 Player: Eggywontgrow Result: Self-destructed Performance ------------- Evolutions (2) 1000 Regions Visited (3) 600 Robots Destroyed (9) 45 Value Destroyed (276) 276 Prototype IDs (0) 0 Alien Tech Used (0) 0 Bonus (0) 0 TOTAL SCORE: 1921 Bonus ------- None Cogmind --------- Core Integrity 514/550 Matter 16/300 Energy 100/100 System Corruption 0% Temperature Cool (0) Movement Core (350) Ox6 Location -8/Materials Parts ------- > --- POWER (1) -------- (None) > --- PROPULSION (3) --- (None) > --- UTILITY (5) ------ Large Storage Unit Signal Interpreter Improved Targeting Computer > --- WEAPON (2) ------- (None) > --- INVENTORY (15) --- Light Deuterium Engine Armored Wheel Medium Storage Unit Terrain Scan Processor Melee Analysis Suite Melee Analysis Suite Melee Analysis Suite Energy Filter Weapon Cycler Gauss Cannon Gauss Cannon Gauss Cannon Grenade Launcher Peak State ------------ > --- POWER ------------ Light Deuterium Engine > --- PROPULSION ------- Armored Wheel Armored Wheel Armored Wheel > --- UTILITY ---------- Large Storage Unit Signal Interpreter Improved Targeting Computer Medium Armor Plating Medium Armor Plating > --- WEAPON ----------- Gauss Cannon Gauss Cannon > --- INVENTORY -------- Light Deuterium Engine Armored Wheel Medium Storage Unit Terrain Scan Processor Melee Analysis Suite Melee Analysis Suite Melee Analysis Suite Energy Filter Weapon Cycler Gauss Cannon Gauss Cannon Grenade Launcher [Rating: 28] Favorites ----------- Power Ion Engine Engine Ion Engine Propulsion Armored Wheel Leg Aluminum Leg Wheel Armored Wheel Utility Sensor Array Device Sensor Array Storage Small Storage Unit Processor Signal Interpreter Protection Medium Armor Plating Weapon Improved Light Cannon Ballistic Gun Assault Rifle Ballistic Cannon Improved Light Cannon Launcher Grenade Launcher Build | -11 -10 -9 -8 ------- Run | Yrd Mat Mat Mat Slots Evolved 4 | . . 2 2 Power . | . . . . Propulsion 1 | . . 1 . Utility 3 | . . 1 2 Weapon . | . . . . Parts Attached 29 | 7 4 7 11 Power 3 | 1 . 1 1 Engine 3 | 1 . 1 1 Core . | . . . . Reactor . | . . . . Propulsion 7 | 4 2 1 . Treads . | . . . . Leg 2 | 2 . . . Wheel 5 | 2 2 1 . Hover . | . . . . Flight . | . . . . Utility 9 | 1 1 3 4 Device 1 | . 1 . . Storage 3 | 1 . 2 . Processor 2 | . . 1 1 Hackware . | . . . . Protection 3 | . . . 3 Artifact . | . . . . Weapon 10 | 1 1 2 6 Energy Gun . | . . . . Energy Cannon . | . . . . Ballistic Gun 3 | 1 1 . 1 Ballistic Cannon 6 | . . 2 4 Launcher 1 | . . . 1 Special Weapon . | . . . . Impact Weapon . | . . . . Slashing Weapon . | . . . . Piercing Weapon . | . . . . Special Melee Weapon . | . . . . Unidentified Prototypes . | . . . . Parts Lost 1 | . . . 1 Power . | . . . . Propulsion . | . . . . Utility 1 | . . . 1 Weapon . | . . . . Highest Loss Streak 1 | . . . 1 To Critical Strikes . | . . . . Average Slot Usage (%) 92 | . 99 89 92 Engine 11 | . 14 11 8 Leg 2 | . 9 . . Wheel 27 | . 18 33 26 Device 10 | . 13 11 6 Storage 11 | . 14 11 9 Processor 5 | . . 1 18 Protection 2 | . . . 9 Ballistic Gun 9 | . 28 3 . Ballistic Cannon 12 | . . 18 14 Naked Turns . | . . . . Heaviest Build 49 | 12 14 36 49 Greatest Support 36 | 20 24 36 36 Greatest Overweight (x) 1 | 1 . . 1 Average Overweight (x) . | . . . . Largest Inventory Capacity 15 | 8 8 15 15 Average Capacity 11 | 7 8 11 15 Most Carried 15 | 8 8 14 15 Average Carried 9 | 5 7 9 12 Final Capacity 15 | 8 8 15 15 Final Carried 13 | 7 8 13 13 Class Distribution -------------------- 100% | Mutant Dominant Class ---------------- Mutant | -10/Materials Mutant | -9/Materials Mutant | -8/Materials Resources | -11 -10 -9 -8 ----------- Run | Yrd Mat Mat Mat Matter Collected 331 | 247 11 69 4 Remotely . | . . . . Salvage Created 222 | . 87 109 26 Parts 18 | . 6 10 2 Haulers Intercepted . | . . . . Recyclers Shooed 2 | . 1 . 1 Parts Field Recycled . | . . . . Retrieved Matter . | . . . . Parts Self-Destructed . | . . . . Prevented . | . . . . Kills | -11 -10 -9 -8 ------- Run | Yrd Mat Mat Mat Combat Hostiles Destroyed 5 | . 2 2 1 Guns 2 | . 2 . . Cannons 3 | . . 2 1 Classes Destroyed 6 | . 2 2 2 Builder 1 | . . . 1 Operator 2 | . 1 1 . Watcher 1 | . . 1 . Grunt 2 | . 2 . . Sentry 2 | . . 2 . Hunter 1 | . . . 1 Best Kill Streak 3 | . 1 3 2 Combat Bots Only 1 | . 1 1 1 Max Kills in Single Turn 1 | . 1 1 1 Gunslinging . | . . . . Exploded . | . . . . Melee . | . . . . Uniques/NPCs Destroyed . | . . . . Combat | -11 -10 -9 -8 -------- Run | Yrd Mat Mat Mat Hostile Shots Fired 41 | . 7 4 30 Missed 12 | . 3 2 7 Damage Taken 318 | . 43 31 244 Core 36 | . . . 36 Absorbed by Shields . | . . . . Core Remaining (%) 100 | 100 100 100 . Volleys Fired 22 | . 10 5 7 Largest 2 | . 2 2 2 Hottest 96 | . 40 78 96 Shots Fired 43 | . 20 10 13 Gun 20 | . 20 . . Cannon 23 | . . 10 13 Launcher . | . . . . Special . | . . . . Kinetic 43 | . 20 10 13 Thermal . | . . . . Explosive . | . . . . Electromagnetic . | . . . . Robot Hit Streak 7 | . 4 7 5 Robot Miss Streak 2 | . 1 1 2 Penetration Max . | . . . . Secondary Targets . | . . . . Shots Hit Robots 28 | . 13 7 8 Core Hits 17 | . 8 4 5 Critical Kills . | . . . . Critical Parts Destroyed . | . . . . Critical Strikes 2 | . . . 2 Blast 2 | . . . 2 Melee Attacks . | . . . . Impact . | . . . . Slashing . | . . . . Piercing . | . . . . Sneak Attacks . | . . . . Combat Hostiles . | . . . . Follow-up Attacks . | . . . . Damage Inflicted 499 | . 138 152 209 Guns 138 | . 138 . . Cannons 325 | . . 148 177 Explosions . | . . . . Melee . | . . . . Ramming 36 | . . 4 32 Kinetic 463 | . 138 148 177 Thermal . | . . . . Explosive . | . . . . Electromagnetic . | . . . . Impact . | . . . . Slashing . | . . . . Piercing . | . . . . Highest Corruption . | . . . . Average Corruption . | . . . . Corruption Purged . | . . . . Corruption Blocked . | . . . . Overload Shots . | . . . . Overflow Damage . | . . . . Projectiles . | . . . . Explosions . | . . . . Melee . | . . . . Knockbacks 4 | . . . 4 Impact . | . . . . Kinetic 3 | . . . 3 Secondary 1 | . . . 1 Self-Inflicted Damage 16 | . . 2 14 Shots . | . . . . Rammed 9 | . . 2 7 Targets Rammed 9 | . . 2 7 Kicked . | . . . . Crushed . | . . . . Highest Temperature 180 | . 6 58 180 Average Temperature 59 | . 6 24 86 Received Heat Transfer 51 | . 24 27 . Siege Activations . | . . . . Robots Corrupted . | . . . . Combat Hostiles . | . . . . Parts Fried . | . . . . Impact Corruptions . | . . . . Robots Melted . | . . . . Combat Hostiles . | . . . . Parts Melted . | . . . . Heat Transferred . | . . . . Parts Sabotaged . | . . . . Parts Stolen . | . . . . Parts Stripped . | . . . . Power Chain Reactions . | . . . . Alert | -11 -10 -9 -8 ------- Run | Yrd Mat Mat Mat Peak Influence 155 | . 86 122 155 Initial 51 | . . 35 51 Average 52 | . 21 73 70 Maximum Alert Level . | . . . . Low Security (%) 100 | 100 100 100 100 Level 1 . | . . . . Level 2 . | . . . . Level 3 . | . . . . Level 4 . | . . . . Level 5 . | . . . . High Security . | . . . . Max Security . | . . . . Squads Dispatched 1 | . 1 . . Investigation . | . . . . Extermination . | . . . . Reinforcement 1 | . 1 . . Assault . | . . . . Garrison . | . . . . Intercept . | . . . . Searches Triggered . | . . . . Construction Impeded . | . . . . Haulers Reinforced . | . . . . Active Scanning Responses . | . . . . Cargo Convoy Interrupts . | . . . . Stealth | -11 -10 -9 -8 --------- Run | Yrd Mat Mat Mat Distress Signals 3 | . . 1 2 Communications Jammed . | . . . . Distress Signals . | . . . . Times Spotted 13 | . 4 4 5 Peak Tracking Total 4 | . 2 2 4 Tactical Retreats 1 | . . . 1 Traps | -11 -10 -9 -8 ------- Run | Yrd Mat Mat Mat Traps Triggered 5 | . . . 5 Indirectly . | . . . . Trap Hack Attempts . | . . . . Triggered . | . . . . Disarmed . | . . . . Reprogrammed . | . . . . Reused . | . . . . Traps Extracted . | . . . . Installed . | . . . . Triggered . | . . . . Machines | -11 -10 -9 -8 ---------- Run | Yrd Mat Mat Mat Machines Disabled 1 | . . . 1 Max in Single Turn 1 | . . . 1 Machines Repaired . | . . . . Machines Dismantled . | . . . . Machines Sabotaged . | . . . . Overloaded Fab Kills . | . . . . Hacking | -11 -10 -9 -8 --------- Run | Yrd Mat Mat Mat Machines Accessed 1 | . . 1 . Terminals 1 | . . 1 . Fabricators . | . . . . Repair Stations . | . . . . Recycling Units . | . . . . Scanalyzers . | . . . . Garrison Access . | . . . . Total Hacks 1 | . . 1 . Successful . | . . . . Failed 1 | . . 1 . Catastrophic . | . . . . Database Lockouts . | . . . . Manual . | . . . . Terminals 1 | . . 1 . Fabricators . | . . . . Repair Stations . | . . . . Recycling Units . | . . . . Scanalyzers . | . . . . Garrison Access . | . . . . Terminal Hacks . | . . . . Fabricator Hacks . | . . . . Repair Station Hacks . | . . . . Recycling Unit Hacks . | . . . . Scanalyzer . | . . . . Garrison Access Hacks . | . . . . Unauthorized Hacks . | . . . . Terminals . | . . . . Fabricators . | . . . . Repair Stations . | . . . . Recycling Units . | . . . . Scanalyzers . | . . . . Garrison Access . | . . . . Data Cores Recovered 1 | . . 1 . Used 1 | . . 1 . Hacking Detections . | . . . . Full Trace Events . | . . . . Feedback Events . | . . . . Feedback Blocked . | . . . . Robot Schematics Acquired . | . . . . Robots Built . | . . . . Authchips . | . . . . Time . | . . . . Total Robot Build Rating . | . . . . Part Schematics Acquired . | . . . . Parts Built . | . . . . Authchips . | . . . . Time . | . . . . Total Part Build Rating . | . . . . Parts Repaired . | . . . . Time . | . . . . Parts Recycled . | . . . . Recycled Matter . | . . . . Retrieved Matter . | . . . . Retrieved Components . | . . . . Parts Scanalyzed . | . . . . Part Schematics Acquired . | . . . . Parts Damaged . | . . . . Bothacking | -11 -10 -9 -8 ------------ Run | Yrd Mat Mat Mat Used RIF Installer . | . . . . Robots Hacked . | . . . . Non-combat . | . . . . Combat . | . . . . Robot Hacks Applied . | . . . . Relay Couplers Released . | . . . . Fabnet Peak Effective % . | . . . . Robots Rewired . | . . . . Allies Hacked . | . . . . Hacks Repelled . | . . . . Allies | -11 -10 -9 -8 -------- Run | Yrd Mat Mat Mat Total Allies . | . . . . Largest Group . | . . . . Highest-Rated Group . | . . . . Highest-Rated Ally . | . . . . Total Orders . | . . . . Ally Attacks . | . . . . Total Damage . | . . . . Kills . | . . . . Allies Corrupted . | . . . . Allies Melted . | . . . . Intel | -11 -10 -9 -8 ------- Run | Yrd Mat Mat Mat Robot Analysis Total . | . . . . Derelict Logs Recovered . | . . . . Drone Launches . | . . . . Drone Recoveries . | . . . . Exploration | -11 -10 -9 -8 ------------- Run | Yrd Mat Mat Mat Turns Passed 707 | 66 179 293 169 Spaces Moved 540 | 47 112 285 96 Core 20 | 20 . . . Treads . | . . . . Legs 58 | 21 37 . . Wheels 462 | 6 75 285 96 Hover . | . . . . Flight . | . . . . Fastest Speed 50 | 50 90 90 90 Average Speed 95 | 98 99 90 104 Slowest Speed 120 | 120 120 90 105 Overloaded Moves . | . . . . Propulsion Burnouts . | . . . . Robots Hopped . | . . . . Cave-ins Triggered . | . . . . Exploration Rate (%) 16 | 3 25 26 13 Regions Visited 3 Branch Regions . Pre-discovered Areas . | . . . . Known Exits Taken 1 | . . 1 . Unknown Exits Taken 2 | 1 1 . . Scrap Searched . | . . . . Spaces Dug . | . . . . Terrain Destroyed 4 | . . . 4 Melee . | . . . . Projectile 4 | . . . 4 AOE . | . . . . Terrain Rammed . | . . . . Walls Destroyed . | . . . . Machines Disabled . | . . . . Actions | -11 -10 -9 -8 --------- Run | Yrd Mat Mat Mat Total 691 | 65 163 313 150 Wait 24 | . 19 . 5 Move 537 | 46 111 284 96 Hop . | . . . . Pick Up 45 | 12 11 9 13 Fast Attach 2 | . . 2 . Attach 18 | 5 2 4 7 Detach 2 | . . 1 1 Swap 9 | 2 2 1 4 Drop 23 | . 8 5 10 Fire 22 | . 10 5 7 Melee . | . . . . Ram 9 | . . 2 7 Kick . | . . . . Crush . | . . . . Escape Stasis . | . . . . Rewire . | . . . . Trap . | . . . . Miscellaneous . | . . . . Route ------- -11/Scrapyard -10/Materials -9/Materials (discovered 2 exits: *Mat / [*Min]) -8/Materials History --------- Turn | Location | Event 25 | -11/Scrapyard | Discovered new exit (range 15) 67 | -11/Scrapyard | Entered Materials 213 | -10/Materials | Discovered new exit (range 9) 246 | -10/Materials | Entered another Materials area 246 | -9/Materials | Evolved 2 slots: Propulsion x1, Utility x1 320 | -9/Materials | Build established: Mutant 357 | -9/Materials | Discovered new exit (range 16) 455 | -9/Materials | Discovered new exit (range 7) 538 | -9/Materials | Identified exit to Materials 539 | -9/Materials | Entered another Materials area 539 | -8/Materials | Evolved 2 slots: Utility x2 708 | -8/Materials | Self-destructed Last Messages --------------- 00696_ R-06 Scavenger collects Gauss Cannon. 00696_ Acquired Med. Armor Plating. 00698_ Slammed into A-02 Transporter. 00698_ Triggered Blade Trap. 00698_ Massive razor-sharp blades shoot up from within the floor. 00698_ Lgt. Deuterium Engine severed. 00699_ R-06 Scavenger collects Lgt. Deuterium Engine. 00699_ Slammed into A-02 Transporter. 00699_ Triggered Blade Trap. 00699_ Massive razor-sharp blades shoot up from within the floor. 00699_ Arm. Wheel severed. 00699_ Med. Armor Plating severed. 00700_ Slammed into R-06 Scavenger. 00700_ Triggered Blade Trap. 00700_ Massive razor-sharp blades shoot up from within the floor. 00700_ Arm. Wheel severed. 00701_ U-05 Engineer lays Concrete. 00701_ A-02 Transporter sends out distress signal. 00701_ Slammed into U-05 Engineer. 00705_ Slammed into A-02 Transporter. Map ----- +----------------------------------------------------+ | | | | | | | | | ?????????????????????????????????????????????????? | | ?????????????????????????????????????????????????? | | ?????????????????????????????????????????????????? | | ?????????????????????????????????????????????????? | | ?????????????????????????????????????????????????? | | ?????????????????????????????????????????????????? | | ########?????????????????????????????????????????? | | #?????????????????????????????????????????? | | #######???????????????????????????????????? | | ????????????????????????????? | | #####+########???????????????????????????????????? | | # #?########?????????????????????????????? | | # ! #?#!! !!#?????????????????????????????? | | # #?#! [ ]!#?????????????????????????????? | | # ! #?# ]]|#?????????????????????????????? | | # #?### ||##????????????????????????????? | | # """ #???# #????????????????????????????? | | # """ ##### #????????????????????????????? | | # """ + ! #???????????????####?????????? | | ## ##### #??????????? ????????? | | ?##########???# ########a ????????? | | ??????????????### ####=s=@k u ????????? | | ????????????????# #??#!#### #???????????????? | | ????????????????# #??# #????? #???????????????? | | ????????????????# #??#!#??????? !#???????????????? | | ????????????????# ####/###???????#???????????????? | | ????????????????# # #???????????????????????? | | ?????????###????# # #???????????????????????? | | ?????????# ??# # #???????????????????????? | | ?????????# ! # # #???????????????????????? | | ?????????# ! + / #???????????????????????? | | ?????????# ! # # #???????????????????????? | | ?????????# ??# ########???????????????????????? | | ?????????# ????# #??????????????????????????????? | | ?????????#??????# #??????????????????????????????? | | ????????????????# #??????????????????????????????? | | ????????????????# #??????????????????????????????? | | ???#+#????????### #??????????????????????????????? | | %##### #########??????????????????????? | | % % ???????????????? | | %###############??????????????????????? | | ???###??????? ?? ???????????????????????????? | | ????????????# ??? ??????????????????????????? | | ??????????? / """?? !==?????????????????????????? | | ?????????? # """???!==#????????????????????????? | | ????????? # """ ??!= #????????????????????????? | +----------------------------------------------------+ Best States ------------- Heat Dissipation 31 Energy Generation 14 Energy Capacity 265 Matter Stores 267 Matter Capacity 300 Sight Range 16 Robot Scan Range 14 Terrain Scan Density 10 Armor Coverage 450 Evasion (%) 55 Targeting Accuracy 6 Item Schematics ----------------- None Robot Schematics ------------------ None Fabricated ------------ Nothing Alien Tech Used ----------------- None Achievements -------------- Dynamic Key Challenges ------------ None Game ------ Seed AerolevBombMaul Manual? 0 Play Time 00:16:20 Cumulative 6.9 hours Start 2024.04.13 @ 13:41:54 End 2024.04.13 @ 13:57:47 Sessions 1 Manual Loads 0 Difficulty Rogue Special Mode None Game No. 7 Rogue 7 Adventurer 0 Explorer 0 Win Type - Total 0 Types 0/0/0/0/0/0/0/0/0 Lore% 0 Gallery% 11 Achievement% 8 Wizard Run 0 Options --------- Layout 0 ASCII 0 Keyboard 0 Movement Mouse Keybinds 0 Fullscreen 2 Font 24/Smallcaps Map View 76x50 Zoom Use 0% Tactical HUD 1 Map Filters NONE Filters NONE Steam 1 RUN: fc5f3802-3625-4843-b237-a137fdb60a18